[Event "Titled Tuesday Blitz February 07 Early 2023"]
[White "Shipov, Sergei"]
[Black "Ljukin, Sergei"]
[WhiteFideId "4113624"]
[BlackFideId "14102200"]
[WhiteElo "2541"]
[BlackElo "2362"]
[Result "1-0"]
[Round "05"]
[TimeControl "180+2"]
[Date "2023.02.07"]
[WhiteClock "0:01:07"]
[BlackClock "0:00:17"]

1. d4 {[%clk 0:03:00]}  d5 {[%clk 0:02:55]} 2. c4 {[%clk 0:03:00]}  c6 {[%clk 0:02:55]} 3. Nc3 {[%clk 0:03:00]}  Nf6 {[%clk 0:02:55]} 4. Nf3 {[%clk 0:03:00]}  dxc4 {[%clk 0:02:54]} 5. a4 {[%clk 0:03:00]}  Bf5 {[%clk 0:02:53]} 6. Nh4 {[%clk 0:03:00]}  Bc8 {[%clk 0:02:40]} 7. e3 {[%clk 0:02:58]}  e5 {[%clk 0:02:40]} 8. Bxc4 {[%clk 0:02:57]}  exd4 {[%clk 0:02:40]} 9. exd4 {[%clk 0:02:57]}  Be7 {[%clk 0:02:41]} 10. O-O {[%clk 0:02:57]}  O-O {[%clk 0:02:41]} 11. Re1 {[%clk 0:02:57]}  Na6 {[%clk 0:02:41]} 12. Bxa6 {[%clk 0:02:56]}  bxa6 {[%clk 0:02:41]} 13. Nf3 {[%clk 0:02:56]}  h6 {[%clk 0:02:25]} 14. Ne5 {[%clk 0:02:43]}  Qc7 {[%clk 0:02:23]} 15. Nxc6 {[%clk 0:02:11]}  Qxc6 {[%clk 0:02:12]} 16. Rxe7 {[%clk 0:02:10]}  Be6 {[%clk 0:02:12]} 17. Bf4 {[%clk 0:02:10]}  Rfd8 {[%clk 0:01:58]} 18. Be5 {[%clk 0:01:51]}  Ng4 {[%clk 0:01:52]} 19. Qe2 {[%clk 0:01:32]}  Nxe5 {[%clk 0:01:48]} 20. Qxe5 {[%clk 0:01:32]}  Rab8 {[%clk 0:01:17]} 21. d5 {[%clk 0:01:19]}  Bxd5 {[%clk 0:01:10]} 22. Nxd5 {[%clk 0:01:19]}  Rb3 {[%clk 0:00:17]} 23. Ne3 {[%clk 0:01:07]} 1-0


[Site "https://www.chess.com"]

[Event "Titled Tuesday Blitz February 07 Early 2023"]
[White "Zahid, Sanatan"]
[Black "Pein, Jonathan"]
[WhiteFideId "10201963"]
[BlackFideId "417092"]
[WhiteElo "1930"]
[BlackElo "2265"]
[Result "1-0"]
[Round "05"]
[TimeControl "180+2"]
[Date "2023.02.07"]
[WhiteClock "0:01:10"]
[BlackClock "0:00:37"]

1. d4 {[%clk 0:03:00]}  d6 {[%clk 0:02:53]} 2. Nc3 {[%clk 0:03:01]}  Nf6 {[%clk 0:02:52]} 3. e4 {[%clk 0:03:01]}  Nc6 {[%clk 0:02:53]} 4. f4 {[%clk 0:02:58]}  e5 {[%clk 0:02:49]} 5. Nf3 {[%clk 0:02:55]}  Bg4 {[%clk 0:02:49]} 6. d5 {[%clk 0:02:49]}  Nd4 {[%clk 0:02:47]} 7. Be3 {[%clk 0:02:47]}  c5 {[%clk 0:02:46]} 8. dxc6 {[%clk 0:02:42]}  bxc6 {[%clk 0:02:35]} 9. Bxd4 {[%clk 0:02:39]}  exd4 {[%clk 0:02:35]} 10. Qxd4 {[%clk 0:02:39]}  Bxf3 {[%clk 0:02:32]} 11. gxf3 {[%clk 0:02:40]}  Be7 {[%clk 0:02:25]} 12. O-O-O {[%clk 0:02:39]}  O-O {[%clk 0:02:22]} 13. Bc4 {[%clk 0:02:39]}  Qa5 {[%clk 0:02:19]} 14. Bb3 {[%clk 0:02:34]}  Nh5 {[%clk 0:02:19]} 15. Ne2 {[%clk 0:02:32]}  Nxf4 {[%clk 0:02:01]} 16. Nxf4 {[%clk 0:02:24]}  Bg5 {[%clk 0:02:01]} 17. Qxd6 {[%clk 0:02:01]}  Rad8 {[%clk 0:01:52]} 18. Qxc6 {[%clk 0:02:00]}  Bxf4+ {[%clk 0:01:53]} 19. Kb1 {[%clk 0:02:00]}  Rc8 {[%clk 0:01:51]} 20. Qd5 {[%clk 0:01:56]}  Qb6 {[%clk 0:01:38]} 21. Qf5 {[%clk 0:01:49]}  Be3 {[%clk 0:00:55]} 22. Rd7 {[%clk 0:01:14]}  Kh8 {[%clk 0:00:39]} 23. Rxf7 {[%clk 0:01:10]}  Rxf7 {[%clk 0:00:39]} 24. Qxc8+ {[%clk 0:01:09]}  Qd8 {[%clk 0:00:37]} 25. Qxd8+ {[%clk 0:01:09]}  Rf8 {[%clk 0:00:37]} 26. Qxf8# {[%clk 0:01:10]} 1-0


[Site "https://www.chess.com"]

[Event "Titled Tuesday Blitz February 07 Early 2023"]
[White "Devaev, Alexander"]
[Black "Szpar, Milosz"]
[WhiteFideId "4169395"]
[BlackFideId "1184989"]
[WhiteElo "2325"]
[BlackElo "2447"]
[Result "0-1"]
[Round "05"]
[TimeControl "180+2"]
[Date "2023.02.07"]
[WhiteClock "0:00:02"]
[BlackClock "0:00:44"]

1. d4 {[%clk 0:03:00]}  Nf6 {[%clk 0:02:59]} 2. c4 {[%clk 0:02:59]}  c5 {[%clk 0:02:59]} 3. d5 {[%clk 0:02:59]}  e6 {[%clk 0:02:59]} 4. Nc3 {[%clk 0:02:59]}  exd5 {[%clk 0:02:59]} 5. cxd5 {[%clk 0:03:00]}  d6 {[%clk 0:03:00]} 6. e4 {[%clk 0:03:00]}  g6 {[%clk 0:03:00]} 7. Nf3 {[%clk 0:03:01]}  a6 {[%clk 0:03:00]} 8. h3 {[%clk 0:03:01]}  b5 {[%clk 0:02:59]} 9. Qc2 {[%clk 0:02:42]}  Bg7 {[%clk 0:02:53]} 10. a4 {[%clk 0:02:21]}  b4 {[%clk 0:02:52]} 11. Nb1 {[%clk 0:02:21]}  O-O {[%clk 0:02:52]} 12. Bd3 {[%clk 0:02:15]}  Re8 {[%clk 0:02:21]} 13. O-O {[%clk 0:02:14]}  Nbd7 {[%clk 0:02:20]} 14. Bf4 {[%clk 0:02:10]}  c4 {[%clk 0:01:53]} 15. Qxc4 {[%clk 0:02:04]}  Nc5 {[%clk 0:01:53]} 16. Nbd2 {[%clk 0:02:01]}  a5 {[%clk 0:01:53]} 17. Qc2 {[%clk 0:01:36]}  Nxd3 {[%clk 0:01:53]} 18. Qxd3 {[%clk 0:01:36]}  Ba6 {[%clk 0:01:54]} 19. Qb1 {[%clk 0:01:08]}  Bxf1 {[%clk 0:01:50]} 20. Kxf1 {[%clk 0:01:09]}  Rc8 {[%clk 0:01:49]} 21. Be3 {[%clk 0:00:49]}  Qe7 {[%clk 0:01:45]} 22. Bg5 {[%clk 0:00:25]}  h6 {[%clk 0:01:45]} 23. Bxf6 {[%clk 0:00:25]}  Qxf6 {[%clk 0:01:46]} 24. Ra2 {[%clk 0:00:11]}  Rc7 {[%clk 0:01:46]} 25. g3 {[%clk 0:00:08]}  Rec8 {[%clk 0:01:46]} 26. Kg2 {[%clk 0:00:08]}  Rc2 {[%clk 0:01:45]} 27. Qd1 {[%clk 0:00:06]}  Rxb2 {[%clk 0:01:43]} 28. e5 {[%clk 0:00:07]}  dxe5 {[%clk 0:01:21]} 29. Rxb2 {[%clk 0:00:06]}  e4 {[%clk 0:01:21]} 30. Rb3 {[%clk 0:00:06]}  exf3+ {[%clk 0:01:20]} 31. Nxf3 {[%clk 0:00:07]}  Qd6 {[%clk 0:01:19]} 32. Rd3 {[%clk 0:00:06]}  Rc3 {[%clk 0:01:17]} 33. Qd2 {[%clk 0:00:04]}  Bf6 {[%clk 0:01:09]} 34. h4 {[%clk 0:00:04]}  h5 {[%clk 0:01:07]} 35. Qe2 {[%clk 0:00:04]}  Qd7 {[%clk 0:01:05]} 36. Qe4 {[%clk 0:00:04]}  Rxd3 {[%clk 0:01:00]} 37. Qxd3 {[%clk 0:00:04]}  Qxa4 {[%clk 0:01:01]} 38. d6 {[%clk 0:00:04]}  Qd7 {[%clk 0:01:01]} 39. Qd5 {[%clk 0:00:05]}  b3 {[%clk 0:00:55]} 40. Qxb3 {[%clk 0:00:05]}  Qxd6 {[%clk 0:00:55]} 41. Qb7 {[%clk 0:00:04]}  Kg7 {[%clk 0:00:52]} 42. Qa8 {[%clk 0:00:04]}  Qb4 {[%clk 0:00:46]} 43. Kg1 {[%clk 0:00:02]}  a4 {[%clk 0:00:44]} 0-1


[Site "https://www.chess.com"]

[Event "Titled Tuesday Blitz February 07 Early 2023"]
[White "Mathieu, Phileas"]
[Black "Bok, Benjamin"]
[WhiteFideId "36048410"]
[BlackFideId "1017063"]
[WhiteElo "2374"]
[BlackElo "2607"]
[Result "0-1"]
[Round "05"]
[TimeControl "180+2"]
[Date "2023.02.07"]
[WhiteClock "0:00:34"]
[BlackClock "0:00:57"]

1. Nf3 {[%clk 0:03:00]}  d5 {[%clk 0:02:57]} 2. g3 {[%clk 0:02:57]}  c6 {[%clk 0:02:54]} 3. Bg2 {[%clk 0:02:56]}  Bg4 {[%clk 0:02:55]} 4. O-O {[%clk 0:02:54]}  Nd7 {[%clk 0:02:56]} 5. d4 {[%clk 0:02:53]}  e6 {[%clk 0:02:55]} 6. Nbd2 {[%clk 0:02:53]}  Ngf6 {[%clk 0:02:55]} 7. Re1 {[%clk 0:02:53]}  Be7 {[%clk 0:02:55]} 8. e4 {[%clk 0:02:53]}  h6 {[%clk 0:02:56]} 9. e5 {[%clk 0:02:51]}  Nh7 {[%clk 0:02:55]} 10. h3 {[%clk 0:02:51]}  Bh5 {[%clk 0:02:54]} 11. c4 {[%clk 0:02:50]}  O-O {[%clk 0:02:54]} 12. g4 {[%clk 0:02:41]}  Bg6 {[%clk 0:02:53]} 13. b3 {[%clk 0:02:40]}  Ng5 {[%clk 0:02:39]} 14. Nxg5 {[%clk 0:02:31]}  Bxg5 {[%clk 0:02:36]} 15. cxd5 {[%clk 0:02:27]}  cxd5 {[%clk 0:02:34]} 16. Nf3 {[%clk 0:02:27]}  Bxc1 {[%clk 0:02:31]} 17. Rxc1 {[%clk 0:02:28]}  Qa5 {[%clk 0:02:30]} 18. Qd2 {[%clk 0:02:26]}  Qxd2 {[%clk 0:02:28]} 19. Nxd2 {[%clk 0:02:27]}  Rac8 {[%clk 0:02:28]} 20. f4 {[%clk 0:02:16]}  Nb8 {[%clk 0:02:18]} 21. Kf2 {[%clk 0:01:59]}  Nc6 {[%clk 0:02:16]} 22. Ke3 {[%clk 0:01:58]}  Nb4 {[%clk 0:02:17]} 23. Rf1 {[%clk 0:01:22]}  Nc2+ {[%clk 0:01:57]} 24. Kf2 {[%clk 0:01:20]}  Nxd4 {[%clk 0:01:58]} 25. Nf3 {[%clk 0:01:12]}  Nc6 {[%clk 0:01:49]} 26. Ke3 {[%clk 0:01:07]}  Be4 {[%clk 0:01:46]} 27. Rf2 {[%clk 0:00:55]}  Nb4 {[%clk 0:01:44]} 28. Rxc8 {[%clk 0:00:52]}  Rxc8 {[%clk 0:01:45]} 29. f5 {[%clk 0:00:34]}  Rc3+ {[%clk 0:00:57]} 30. Kf4 {[%clk 0:00:34]}  Nd3+ {[%clk 0:00:57]} 0-1


[Site "https://www.chess.com"]

[Event "Titled Tuesday Blitz February 07 Early 2023"]
[White "Martynov, Pavel"]
[Black "Durarbayli, Vasif"]
[WhiteFideId "4101260"]
[BlackFideId "13402935"]
[WhiteElo "2414"]
[BlackElo "2627"]
[Result "1-0"]
[Round "05"]
[TimeControl "180+2"]
[Date "2023.02.07"]
[WhiteClock "0:00:02"]
[BlackClock "0:00:01"]

1. e4 {[%clk 0:03:00]}  c5 {[%clk 0:02:58]} 2. Nf3 {[%clk 0:03:00]}  a6 {[%clk 0:02:57]} 3. Nc3 {[%clk 0:02:59]}  b5 {[%clk 0:02:57]} 4. g3 {[%clk 0:02:59]}  Bb7 {[%clk 0:02:56]} 5. Bg2 {[%clk 0:02:44]}  b4 {[%clk 0:02:56]} 6. Na4 {[%clk 0:02:44]}  Qa5 {[%clk 0:02:51]} 7. b3 {[%clk 0:02:39]}  Bxe4 {[%clk 0:02:49]} 8. d4 {[%clk 0:02:38]}  cxd4 {[%clk 0:02:38]} 9. Qxd4 {[%clk 0:02:36]}  Nf6 {[%clk 0:02:38]} 10. O-O {[%clk 0:02:02]}  Nc6 {[%clk 0:02:38]} 11. Qe3 {[%clk 0:01:53]}  e6 {[%clk 0:01:42]} 12. Bb2 {[%clk 0:01:48]}  Bd5 {[%clk 0:01:36]} 13. Rad1 {[%clk 0:01:13]}  Be7 {[%clk 0:01:26]} 14. Bxf6 {[%clk 0:01:07]}  gxf6 {[%clk 0:01:17]} 15. Rxd5 {[%clk 0:01:03]}  Qxd5 {[%clk 0:00:31]} 16. Nb6 {[%clk 0:01:02]}  Bc5 {[%clk 0:00:32]} 17. Nxd5 {[%clk 0:00:54]}  Bxe3 {[%clk 0:00:32]} 18. Nxe3 {[%clk 0:00:53]}  Rc8 {[%clk 0:00:30]} 19. Rd1 {[%clk 0:00:38]}  Ke7 {[%clk 0:00:29]} 20. Nd4 {[%clk 0:00:34]}  d5 {[%clk 0:00:17]} 21. Nxc6+ {[%clk 0:00:16]}  Rxc6 {[%clk 0:00:17]} 22. Rd4 {[%clk 0:00:16]}  a5 {[%clk 0:00:18]} 23. a3 {[%clk 0:00:17]}  Rb8 {[%clk 0:00:12]} 24. h3 {[%clk 0:00:15]}  f5 {[%clk 0:00:10]} 25. axb4 {[%clk 0:00:10]}  axb4 {[%clk 0:00:09]} 26. Kf1 {[%clk 0:00:08]}  Ra6 {[%clk 0:00:09]} 27. Ke2 {[%clk 0:00:08]}  Ra2 {[%clk 0:00:08]} 28. Rh4 {[%clk 0:00:08]}  Rc8 {[%clk 0:00:05]} 29. Kd2 {[%clk 0:00:07]}  Kf6 {[%clk 0:00:05]} 30. Rxb4 {[%clk 0:00:04]}  Ke5 {[%clk 0:00:03]} 31. f4+ {[%clk 0:00:04]}  Kf6 {[%clk 0:00:03]} 32. Rb6 {[%clk 0:00:04]}  Kg7 {[%clk 0:00:02]} 33. Rd6 {[%clk 0:00:03]}  Ra1 {[%clk 0:00:02]} 34. Bf1 {[%clk 0:00:03]}  Rb1 {[%clk 0:00:02]} 35. Bd3 {[%clk 0:00:01]}  Rg1 {[%clk 0:00:01]} 36. g4 {[%clk 0:00:02]}  fxg4 {[%clk 0:00:02]} 37. hxg4 {[%clk 0:00:03]}  Kf6 {[%clk 0:00:02]} 38. g5+ {[%clk 0:00:02]}  Ke7 {[%clk 0:00:02]} 39. Rb6 {[%clk 0:00:02]}  Rc7 {[%clk 0:00:02]} 40. f5 {[%clk 0:00:03]}  d4 {[%clk 0:00:02]} 41. f6+ {[%clk 0:00:03]}  Kd7 {[%clk 0:00:02]} 42. Nc4 {[%clk 0:00:04]}  Rg2+ {[%clk 0:00:03]} 43. Kc1 {[%clk 0:00:04]}  Rxg5 {[%clk 0:00:03]} 44. Rd6+ {[%clk 0:00:04]}  Ke8 {[%clk 0:00:04]} 45. Nb6 {[%clk 0:00:03]}  Ra7 {[%clk 0:00:01]} 46. Rc6 {[%clk 0:00:02]} 1-0


[Site "https://www.chess.com"]

[Event "Titled Tuesday Blitz February 07 Early 2023"]
[White "Aitbayev, Aslan"]
[Black "Adla, Diego"]
[WhiteFideId "13704613"]
[BlackFideId "100072"]
[WhiteElo "2427"]
[BlackElo "2383"]
[Result "1-0"]
[Round "05"]
[TimeControl "180+2"]
[Date "2023.02.07"]
[WhiteClock "0:00:15"]
[BlackClock "0:00:11"]

1. e4 {[%clk 0:02:56]}  e5 {[%clk 0:02:59]} 2. Nf3 {[%clk 0:02:55]}  Nc6 {[%clk 0:03:00]} 3. Bb5 {[%clk 0:02:54]}  Bc5 {[%clk 0:02:57]} 4. c3 {[%clk 0:02:53]}  Qf6 {[%clk 0:02:57]} 5. d4 {[%clk 0:02:41]}  Bb6 {[%clk 0:02:54]} 6. Bxc6 {[%clk 0:02:37]}  bxc6 {[%clk 0:02:51]} 7. Nxe5 {[%clk 0:02:35]}  Ne7 {[%clk 0:02:51]} 8. O-O {[%clk 0:02:33]}  O-O {[%clk 0:02:48]} 9. Nd2 {[%clk 0:02:29]}  d5 {[%clk 0:02:41]} 10. Nd3 {[%clk 0:02:29]}  Ng6 {[%clk 0:02:38]} 11. e5 {[%clk 0:02:19]}  Qe7 {[%clk 0:02:36]} 12. a4 {[%clk 0:02:14]}  a5 {[%clk 0:02:09]} 13. b3 {[%clk 0:02:13]}  Re8 {[%clk 0:02:05]} 14. Ba3 {[%clk 0:02:11]}  Qh4 {[%clk 0:02:02]} 15. Qf3 {[%clk 0:02:05]}  Ba6 {[%clk 0:01:57]} 16. Rfe1 {[%clk 0:02:01]}  Bxd4 {[%clk 0:01:45]} 17. g3 {[%clk 0:01:13]}  Qh6 {[%clk 0:01:45]} 18. cxd4 {[%clk 0:01:10]}  Qxd2 {[%clk 0:01:45]} 19. Rad1 {[%clk 0:01:10]}  Qc3 {[%clk 0:01:31]} 20. Bc5 {[%clk 0:01:08]}  Qxb3 {[%clk 0:01:28]} 21. Re3 {[%clk 0:01:03]}  Bxd3 {[%clk 0:01:22]} 22. Rdxd3 {[%clk 0:01:00]}  Qxa4 {[%clk 0:01:23]} 23. h4 {[%clk 0:01:00]}  Nf8 {[%clk 0:01:15]} 24. Qg4 {[%clk 0:00:36]}  Ne6 {[%clk 0:01:14]} 25. Rc3 {[%clk 0:00:36]}  Qa1+ {[%clk 0:01:02]} 26. Kg2 {[%clk 0:00:36]}  a4 {[%clk 0:01:02]} 27. Ba3 {[%clk 0:00:28]}  Ra6 {[%clk 0:00:56]} 28. h5 {[%clk 0:00:28]}  h6 {[%clk 0:00:54]} 29. Rf3 {[%clk 0:00:27]}  Qb1 {[%clk 0:00:48]} 30. Rcd3 {[%clk 0:00:23]}  Qe1 {[%clk 0:00:44]} 31. Qf5 {[%clk 0:00:20]}  Nd8 {[%clk 0:00:35]} 32. Qd7 {[%clk 0:00:19]}  Re6 {[%clk 0:00:28]} 33. Qxd8+ {[%clk 0:00:19]}  Kh7 {[%clk 0:00:28]} 34. Rxf7 {[%clk 0:00:18]}  Qe4+ {[%clk 0:00:18]} 35. Rdf3 {[%clk 0:00:18]}  Qg4 {[%clk 0:00:13]} 36. Qd7 {[%clk 0:00:16]}  Ra8 {[%clk 0:00:11]} 37. Bf8 {[%clk 0:00:15]} 1-0


[Site "https://www.chess.com"]

[Event "Titled Tuesday Blitz February 07 Early 2023"]
[White "Murzin, Volodar"]
[Black "Lamaze, Simon"]
[WhiteFideId "44155573"]
[BlackFideId "36069264"]
[WhiteElo "2604"]
[BlackElo "2363"]
[Result "1-0"]
[Round "05"]
[TimeControl "180+2"]
[Date "2023.02.07"]
[WhiteClock "0:00:45"]
[BlackClock "0:00:12"]

1. e4 {[%clk 0:03:00]}  c5 {[%clk 0:02:58]} 2. Nf3 {[%clk 0:03:00]}  e6 {[%clk 0:02:53]} 3. g3 {[%clk 0:02:59]}  Nf6 {[%clk 0:02:52]} 4. Qe2 {[%clk 0:02:58]}  Nc6 {[%clk 0:02:51]} 5. Bg2 {[%clk 0:02:58]}  e5 {[%clk 0:02:52]} 6. O-O {[%clk 0:02:58]}  Be7 {[%clk 0:02:52]} 7. Nc3 {[%clk 0:02:58]}  d6 {[%clk 0:02:52]} 8. Nd5 {[%clk 0:02:58]}  O-O {[%clk 0:02:52]} 9. c3 {[%clk 0:02:58]}  Be6 {[%clk 0:02:49]} 10. Ne1 {[%clk 0:02:58]}  Rb8 {[%clk 0:02:46]} 11. Nc2 {[%clk 0:02:57]}  b5 {[%clk 0:02:44]} 12. Nce3 {[%clk 0:02:57]}  Qd7 {[%clk 0:02:30]} 13. f4 {[%clk 0:02:49]}  exf4 {[%clk 0:02:30]} 14. gxf4 {[%clk 0:02:50]}  Bxd5 {[%clk 0:02:23]} 15. exd5 {[%clk 0:02:38]}  Na5 {[%clk 0:02:20]} 16. Qf3 {[%clk 0:02:38]}  c4 {[%clk 0:02:16]} 17. Bh3 {[%clk 0:02:34]}  Qb7 {[%clk 0:02:12]} 18. Nf5 {[%clk 0:02:33]}  Bd8 {[%clk 0:02:11]} 19. Bg2 {[%clk 0:02:24]}  Bb6+ {[%clk 0:02:08]} 20. Kh1 {[%clk 0:02:24]}  Qd7 {[%clk 0:02:07]} 21. Qh3 {[%clk 0:02:19]}  g6 {[%clk 0:02:03]} 22. Nh6+ {[%clk 0:02:16]}  Kg7 {[%clk 0:02:03]} 23. f5 {[%clk 0:02:16]}  Rbe8 {[%clk 0:01:52]} 24. d4 {[%clk 0:01:57]}  cxd3 {[%clk 0:01:50]} 25. Bg5 {[%clk 0:01:52]}  Bd8 {[%clk 0:01:31]} 26. b3 {[%clk 0:01:43]}  Nb7 {[%clk 0:01:19]} 27. b4 {[%clk 0:01:40]}  d2 {[%clk 0:00:54]} 28. Bxd2 {[%clk 0:01:33]}  Re5 {[%clk 0:00:38]} 29. Ng4 {[%clk 0:01:08]}  Nxg4 {[%clk 0:00:37]} 30. Bh6+ {[%clk 0:01:05]}  Kg8 {[%clk 0:00:21]} 31. Qxg4 {[%clk 0:01:02]}  Rfe8 {[%clk 0:00:18]} 32. fxg6 {[%clk 0:00:59]}  Qxg4 {[%clk 0:00:18]} 33. gxf7+ {[%clk 0:00:59]}  Kh8 {[%clk 0:00:19]} 34. f8=Q+ {[%clk 0:00:59]}  Rxf8 {[%clk 0:00:17]} 35. Rxf8+ {[%clk 0:01:00]}  Qg8 {[%clk 0:00:18]} 36. Rxg8+ {[%clk 0:00:47]}  Kxg8 {[%clk 0:00:19]} 37. Bh3 {[%clk 0:00:48]}  Bf6 {[%clk 0:00:14]} 38. Be6+ {[%clk 0:00:47]}  Kh8 {[%clk 0:00:12]} 39. Rg1 {[%clk 0:00:45]} 1-0


[Site "https://www.chess.com"]

[Event "Titled Tuesday Blitz February 07 Early 2023"]
[White "Royal, Shreyas"]
[Black "Nguyen, Quoc Hy"]
[WhiteFideId "448869"]
[BlackFideId "12410853"]
[WhiteElo "2438"]
[BlackElo "2352"]
[Result "0-1"]
[Round "05"]
[TimeControl "180+2"]
[Date "2023.02.07"]
[WhiteClock "0:00:22"]
[BlackClock "0:00:22"]

1. e4 {[%clk 0:03:00]}  c5 {[%clk 0:02:57]} 2. Nf3 {[%clk 0:02:58]}  d6 {[%clk 0:02:57]} 3. d4 {[%clk 0:02:57]}  cxd4 {[%clk 0:02:58]} 4. Nxd4 {[%clk 0:02:58]}  Nf6 {[%clk 0:02:58]} 5. Nc3 {[%clk 0:02:59]}  a6 {[%clk 0:02:55]} 6. h3 {[%clk 0:02:59]}  e5 {[%clk 0:02:55]} 7. Nf3 {[%clk 0:02:58]}  Be7 {[%clk 0:02:55]} 8. Bc4 {[%clk 0:02:58]}  O-O {[%clk 0:02:55]} 9. O-O {[%clk 0:02:58]}  Be6 {[%clk 0:02:54]} 10. Bxe6 {[%clk 0:02:55]}  fxe6 {[%clk 0:02:53]} 11. Be3 {[%clk 0:02:55]}  Nc6 {[%clk 0:02:49]} 12. Bg5 {[%clk 0:02:30]}  h6 {[%clk 0:02:30]} 13. Bh4 {[%clk 0:02:30]}  Qb6 {[%clk 0:02:17]} 14. Qd2 {[%clk 0:02:13]}  Nd4 {[%clk 0:02:11]} 15. Nxd4 {[%clk 0:01:54]}  Qxd4 {[%clk 0:01:47]} 16. Qe2 {[%clk 0:01:48]}  Qb4 {[%clk 0:01:41]} 17. Qd3 {[%clk 0:01:35]}  Rac8 {[%clk 0:01:36]} 18. Rab1 {[%clk 0:01:30]}  Rc4 {[%clk 0:01:27]} 19. Rfd1 {[%clk 0:01:15]}  Rd4 {[%clk 0:01:14]} 20. Qe3 {[%clk 0:01:10]}  Ng4 {[%clk 0:01:01]} 21. hxg4 {[%clk 0:01:10]}  Bxh4 {[%clk 0:01:01]} 22. g3 {[%clk 0:01:11]}  Bg5 {[%clk 0:01:00]} 23. Qe2 {[%clk 0:01:11]}  Rc8 {[%clk 0:00:56]} 24. Kg2 {[%clk 0:01:00]}  b5 {[%clk 0:00:49]} 25. f3 {[%clk 0:00:57]}  Qc4 {[%clk 0:00:45]} 26. Qxc4 {[%clk 0:00:51]}  Rcxc4 {[%clk 0:00:44]} 27. a3 {[%clk 0:00:42]}  a5 {[%clk 0:00:41]} 28. Kf1 {[%clk 0:00:36]}  b4 {[%clk 0:00:38]} 29. Nb5 {[%clk 0:00:34]}  Rxd1+ {[%clk 0:00:35]} 30. Rxd1 {[%clk 0:00:35]}  Rxc2 {[%clk 0:00:34]} 31. axb4 {[%clk 0:00:33]}  Rxb2 {[%clk 0:00:28]} 32. Nxd6 {[%clk 0:00:30]}  axb4 {[%clk 0:00:24]} 33. Nc4 {[%clk 0:00:31]}  Rc2 {[%clk 0:00:22]} 34. Nxe5 {[%clk 0:00:30]}  b3 {[%clk 0:00:23]} 35. Nd3 {[%clk 0:00:23]}  b2 {[%clk 0:00:23]} 36. Rb1 {[%clk 0:00:23]}  Rc1+ {[%clk 0:00:22]} 37. Nxc1 {[%clk 0:00:20]}  bxc1=Q+ {[%clk 0:00:23]} 38. Rxc1 {[%clk 0:00:21]}  Bxc1 {[%clk 0:00:24]} 39. Ke2 {[%clk 0:00:21]}  Kf7 {[%clk 0:00:24]} 40. f4 {[%clk 0:00:21]}  Kf6 {[%clk 0:00:23]} 41. Kd3 {[%clk 0:00:22]}  g5 {[%clk 0:00:23]} 42. e5+ {[%clk 0:00:22]}  Kg6 {[%clk 0:00:23]} 43. Ke4 {[%clk 0:00:23]}  Bd2 {[%clk 0:00:22]} 44. f5+ {[%clk 0:00:22]}  Kf7 {[%clk 0:00:22]} 45. Kd4 {[%clk 0:00:23]}  Bc1 {[%clk 0:00:22]} 46. Kc5 {[%clk 0:00:23]}  Ba3+ {[%clk 0:00:21]} 47. Kc6 {[%clk 0:00:23]}  Ke7 {[%clk 0:00:22]} 48. f6+ {[%clk 0:00:21]}  Kf7 {[%clk 0:00:22]} 49. Kd7 {[%clk 0:00:21]}  Bb2 {[%clk 0:00:21]} 50. Kd6 {[%clk 0:00:22]}  Ba1 {[%clk 0:00:22]} 0-1


[Site "https://www.chess.com"]

[Event "Titled Tuesday Blitz February 07 Early 2023"]
[White "Czopor, Maciej"]
[Black "Matinian, Nikita"]
[WhiteFideId "21805431"]
[BlackFideId "24129100"]
[WhiteElo "2385"]
[BlackElo "2407"]
[Result "1-0"]
[Round "05"]
[TimeControl "180+2"]
[Date "2023.02.07"]
[WhiteClock "0:00:04"]
[BlackClock "0:00:03"]

1. c4 {[%clk 0:03:00]}  e5 {[%clk 0:02:57]} 2. Nc3 {[%clk 0:03:00]}  Bb4 {[%clk 0:02:56]} 3. Nd5 {[%clk 0:02:58]}  a5 {[%clk 0:02:56]} 4. e3 {[%clk 0:02:55]}  d6 {[%clk 0:02:49]} 5. Qc2 {[%clk 0:02:53]}  Nf6 {[%clk 0:02:44]} 6. a3 {[%clk 0:02:49]}  Bc5 {[%clk 0:02:44]} 7. Nf3 {[%clk 0:02:44]}  c6 {[%clk 0:02:39]} 8. Nxf6+ {[%clk 0:02:43]}  Qxf6 {[%clk 0:02:40]} 9. b3 {[%clk 0:02:21]}  Bg4 {[%clk 0:02:39]} 10. Be2 {[%clk 0:02:16]}  Nd7 {[%clk 0:02:38]} 11. Bb2 {[%clk 0:02:15]}  Qg6 {[%clk 0:02:35]} 12. Qxg6 {[%clk 0:02:14]}  hxg6 {[%clk 0:02:35]} 13. d4 {[%clk 0:02:02]}  exd4 {[%clk 0:02:28]} 14. exd4 {[%clk 0:01:54]}  Bb6 {[%clk 0:02:28]} 15. h3 {[%clk 0:01:47]}  O-O-O {[%clk 0:02:25]} 16. O-O-O {[%clk 0:01:47]}  Rde8 {[%clk 0:02:21]} 17. Rhe1 {[%clk 0:01:46]}  Bf5 {[%clk 0:02:08]} 18. Ng5 {[%clk 0:01:23]}  Re7 {[%clk 0:01:50]} 19. Bf3 {[%clk 0:00:50]}  Bd8 {[%clk 0:01:11]} 20. Ne4 {[%clk 0:00:50]}  Bxe4 {[%clk 0:01:10]} 21. Rxe4 {[%clk 0:00:49]}  Rxe4 {[%clk 0:01:06]} 22. Bxe4 {[%clk 0:00:49]}  Bf6 {[%clk 0:01:05]} 23. Bc3 {[%clk 0:00:37]}  Rh5 {[%clk 0:00:55]} 24. Bf3 {[%clk 0:00:36]}  Rf5 {[%clk 0:00:55]} 25. Re1 {[%clk 0:00:32]}  c5 {[%clk 0:00:52]} 26. Re8+ {[%clk 0:00:21]}  Kc7 {[%clk 0:00:51]} 27. Bxa5+ {[%clk 0:00:21]}  b6 {[%clk 0:00:51]} 28. Bd2 {[%clk 0:00:17]}  Bxd4 {[%clk 0:00:49]} 29. Ra8 {[%clk 0:00:15]}  Re5 {[%clk 0:00:43]} 30. Ra7+ {[%clk 0:00:14]}  Kd8 {[%clk 0:00:43]} 31. Bc6 {[%clk 0:00:10]}  Nf6 {[%clk 0:00:22]} 32. Bf4 {[%clk 0:00:04]}  Re6 {[%clk 0:00:17]} 33. Bd5 {[%clk 0:00:03]}  Nxd5 {[%clk 0:00:16]} 34. cxd5 {[%clk 0:00:03]}  Re2 {[%clk 0:00:12]} 35. Bxd6 {[%clk 0:00:03]}  Rxf2 {[%clk 0:00:10]} 36. Be7+ {[%clk 0:00:02]}  Kc8 {[%clk 0:00:07]} 37. d6 {[%clk 0:00:03]}  Be3+ {[%clk 0:00:07]} 38. Kb1 {[%clk 0:00:02]}  Rd2 {[%clk 0:00:07]} 39. Rc7+ {[%clk 0:00:02]}  Kb8 {[%clk 0:00:07]} 40. Rc6 {[%clk 0:00:02]}  Kb7 {[%clk 0:00:07]} 41. Rc7+ {[%clk 0:00:03]}  Ka6 {[%clk 0:00:08]} 42. d7 {[%clk 0:00:03]}  Rd1+ {[%clk 0:00:04]} 43. Kc2 {[%clk 0:00:04]}  Rd2+ {[%clk 0:00:04]} 44. Kc3 {[%clk 0:00:04]}  Bf4 {[%clk 0:00:03]} 45. d8=Q {[%clk 0:00:02]}  Rxd8 {[%clk 0:00:02]} 46. Bxd8 {[%clk 0:00:03]}  Be5+ {[%clk 0:00:03]} 47. Kc4 {[%clk 0:00:03]}  Bxc7 {[%clk 0:00:02]} 48. Bxc7 {[%clk 0:00:04]}  Kb7 {[%clk 0:00:03]} 49. Bf4 {[%clk 0:00:03]}  Kc6 {[%clk 0:00:04]} 50. a4 {[%clk 0:00:03]}  f6 {[%clk 0:00:04]} 51. h4 {[%clk 0:00:04]}  Kd7 {[%clk 0:00:02]} 52. Kd5 {[%clk 0:00:04]}  g5 {[%clk 0:00:03]} 53. hxg5 {[%clk 0:00:04]} 1-0


[Site "https://www.chess.com"]